bitfinex/quotes_ETHUSD_20240907
["timestamp","ask_amount","ask_price","bid_price","bid_amount"]
[1725674919822,2.68075102,2233.3,2232.9,5.42015406]
[1725674920028,2.68075102,2233.3,2233.0,3.90095181]
[1725674920324,2.68075102,2233.3,2232.9,5.42015406]
[1725674920525,2.68075102,2233.3,2233.0,3.90092953]
[1725674920725,2.68075102,2233.3,2232.9,5.42015406]
[1725674920946,2.68075102,2233.3,2233.0,3.90095428]
[1725674921152,0.24776084,2233.3,2233.1,11.74830555]
[1725674921458,0.46933489,2233.4,2233.2,3.90062149]
[1725674921757,0.46933489,2233.4,2233.1,0.94169406]
[1725674922055,0.46933489,2233.4,2233.2,3.90051933]
[1725674922269,0.46933489,2233.4,2233.1,0.94169406]
[1725674922428,0.46933489,2233.4,2233.2,3.90050188]
[1725674922628,0.46933489,2233.4,2233.1,1.96316273]
[1725674922827,0.51762507,2233.4,2233.1,1.02146867]
[1725674923126,0.51762507,2233.4,2233.0,5.41987406]
[1725674923340,0.51762507,2233.4,2233.1,3.90071096]
[1725674923668,0.51762507,2233.4,2233.0,5.41987406]
[1725674923821,0.51762507,2233.4,2233.1,3.90073405]
[1725674924022,0.51762507,2233.4,2233.0,5.41987406]
[1725674924324,0.51762507,2233.4,2233.1,3.90074417]
[1725674924656,0.51762507,2233.4,2233.0,6.9818108]
[1725674924861,0.51762507,2233.4,2233.1,3.90074]
[1725674925058,0.51762507,2233.4,2233.0,6.9818108]
[1725674925263,0.51762507,2233.4,2233.1,3.90073935]
[1725674925560,0.51762507,2233.4,2233.0,6.9818108]
[1725674925762,0.51762507,2233.4,2233.1,3.9007378]
[1725674925922,0.51762507,2233.4,2233.0,6.9818108]
[1725674926128,0.51762507,2233.4,2233.1,3.90073575]
[1725674926342,0.51762507,2233.4,2233.0,6.9818108]
[1725674926562,0.51762507,2233.4,2233.1,3.90073665]
[1725674926869,0.51762507,2233.4,2233.0,6.9818108]
[1725674927064,0.51762507,2233.4,2233.1,3.90073836]
[1725674927225,0.51762507,2233.4,2233.0,6.9818108]
[1725674927425,0.51762507,2233.4,2233.1,3.90073852]
[1725674927651,0.51762507,2233.4,2233.0,6.9818108]
[1725674927862,0.51762507,2233.4,2233.1,3.90073852]
[1725674928035,0.51762507,2233.4,2233.0,6.9818108]
[1725674928237,0.51762507,2233.4,2233.1,3.90073735]
[1725674928432,0.51762507,2233.4,2233.0,6.9818108]
[1725674928767,0.51762507,2233.4,2233.1,3.90073686]
[1725674929069,0.51762507,2233.4,2233.0,6.9818108]
[1725674929269,0.51762507,2233.4,2233.1,3.90072418]
[1725674929437,0.51762507,2233.4,2233.0,6.9818108]
[1725674929643,0.51762507,2233.4,2233.1,3.90072433]
[1725674929859,0.51762507,2233.4,2233.0,6.9818108]
[1725674930158,0.51762507,2233.4,2233.1,3.90070986]
[1725674930364,0.51762507,2233.4,2233.0,6.9818108]
[1725674930666,0.51762507,2233.4,2233.1,3.900725]
[1725674930863,0.51762507,2233.4,2233.0,5.41987406]
[1725674931054,0.51762507,2233.4,2233.1,3.90072468]
[1725674931263,0.51762507,2233.4,2233.0,5.41987406]
[1725674931566,0.51762507,2233.4,2233.1,3.90071736]
[1725674931769,0.51762507,2233.4,2233.0,5.41987406]
[1725674931983,0.51762507,2233.4,2233.1,3.90071843]
[1725674932266,0.51762507,2233.4,2233.0,5.41987406]
[1725674932434,0.51762507,2233.4,2233.1,3.90070751]
[1725674932644,0.51762507,2233.4,2233.0,5.41987406]
[1725674932967,0.51762507,2233.4,2233.1,3.9007186]
[1725674933153,0.51762507,2233.4,2233.0,5.41987406]
[1725674933331,0.51762507,2233.4,2233.1,3.90071151]
[1725674933532,0.51762507,2233.4,2233.0,5.41987406]
[1725674933730,2.2878,2233.1,2232.8,0.94169406]
[1725674934045,0.29595929,2233.0,2232.9,1.56043856]
[1725674934236,0.29595929,2233.0,2232.7,8.3458445]
[1725674934435,2.2878,2232.9,2232.8,1.56054642]
[1725674934650,2.2878,2232.9,2232.6,20.84169406]
[1725674934971,4.47908,2232.6,2232.5,0.94169406]
[1725674935181,2.2878,2232.6,2232.5,3.90162598]
[1725674935329,2.53527253,2232.6,2232.3,0.94169406]
[1725674935531,2.53527253,2232.6,2232.4,3.90196785]
[1725674935863,2.53527253,2232.6,2232.3,0.94169406]
[1725674936085,2.53527253,2232.6,2232.4,3.90197148]
[1725674936226,2.53527253,2232.6,2232.3,0.94169406]
[1725674936423,2.53527253,2232.6,2232.4,3.90197931]
[1725674936695,2.53527253,2232.6,2232.2,5.42155406]
[1725674936827,2.53527253,2232.6,2232.3,3.90197782]
[1725674937033,2.53527253,2232.6,2232.4,1.56079113]
[1725674937232,2.53527253,2232.6,2232.2,5.42155406]
[1725674937454,2.53527253,2232.6,2232.3,3.90197743]
[1725674937758,2.53527253,2232.6,2232.2,5.42155406]
[1725674937959,2.53527253,2232.6,2232.3,3.90197848]
[1725674938165,2.53527253,2232.6,2232.2,5.42155406]
[1725674938465,2.53527253,2232.6,2232.3,3.90197975]
[1725674938665,4.52767018,2232.5,2232.1,0.94169406]
[1725674938971,4.47968,2232.3,2232.0,0.94169406]
[1725674939139,0.04829018,2232.2,2231.9,0.94169406]
[1725674939470,0.04829018,2232.2,2231.7,5.42244406]
[1725674939671,0.04829018,2232.2,2231.8,3.90264002]
[1725674939829,6.76794,2232.1,2231.7,0.94169406]
[1725674940029,6.76794,2232.1,2231.6,20.84169406]
[1725674940030,0.29491067,2232.0,2231.6,20.84169406]
[1725674940237,0.29491067,2232.0,2231.7,3.90289065]
[1725674940530,0.29491067,2232.0,2231.6,20.84169406]
[1725674940731,0.29491067,2232.0,2231.8,0.59972928]
[1725674940942,0.04829018,2232.0,2231.6,19.9]
[1725674941150,0.24662049,2231.9,2231.7,1.56122323]
[1725674941434,0.04829018,2232.0,2231.6,20.84169406]
[1725674941635,0.04829018,2232.0,2231.6,19.9]
[1725674941947,0.04829018,2232.0,2231.6,24.38103]
[1725674942149,2.33609018,2232.1,2231.6,19.9]
[1725674942467,2.33609018,2232.1,2231.7,6.04192046]
[1725674942634,0.24516497,2232.0,2231.7,4.48078]
[1725674942828,0.24516497,2232.0,2231.8,0.08961069]
[1725674943059,2.2878,2232.4,2231.8,0.08961069]
[1725674943297,0.2934945,2232.3,2231.8,4.48052]
[1725674943489,0.2934945,2232.3,2232.0,4.48027]
[1725674943653,0.24520432,2232.3,2232.0,4.48027]
[1725674944049,0.04829018,2232.5,2232.0,4.48027]
[1725674944298,0.24546668,2232.4,2232.0,4.48027]
[1725674944500,0.24546668,2232.4,2232.1,4.47994]
[1725674944657,0.24546668,2232.4,2232.2,4.47987]
[1725674945004,0.04829018,2232.6,2232.1,5.63228102]
[1725674945182,0.24559784,2232.3,2232.1,5.63228102]
[1725674945354,6.87903,2232.7,2232.2,4.47988]
[1725674945355,2.44829018,2232.7,2232.2,4.47988]
[1725674945550,2.44829018,2232.7,2232.3,0.08958738]
[1725674945792,0.04829018,2232.9,2232.4,6.95176]
[1725674945949,0.04829018,2232.9,2232.4,4.47946]
[1725674946461,0.24571588,2232.8,2232.4,4.47946]
[1725674949766,0.46946375,2232.7,2232.4,4.47946]
[1725674950294,0.24596503,2232.6,2232.4,4.47946]
[1725674950510,0.24596503,2232.6,2232.4,5.67982778]
[1725674952963,0.24596503,2232.6,2232.4,1.20036778]
[1725674953169,0.24596503,2232.6,2232.3,4.47968]
[1725674953404,0.24596503,2232.6,2232.3,4.56926255]
[1725674953983,0.24596503,2232.6,2232.3,9.04885255]
[1725674954223,0.24596503,2232.6,2232.4,4.47948]
[1725674955079,0.24596503,2232.6,2232.5,8.95856]
[1725674955298,0.46946375,2232.7,2232.6,4.47908]
[1725674957376,0.46946375,2232.7,2232.5,0.90481424]
[1725674957590,0.46946375,2232.7,2232.4,4.47935]
[1725674957915,0.24627968,2232.6,2232.4,4.47935]
[1725674961202,0.24627968,2232.6,2232.5,6.95158]
[1725674961419,0.24627968,2232.6,2232.5,8.51204116]
[1725674961583,0.24627968,2232.6,2232.5,10.85268257]
[1725674961913,0.46946375,2232.7,2232.6,4.47908]
[1725674962470,0.46946375,2232.7,2232.6,9.04773547]
[1725674962704,0.46946375,2232.7,2232.6,10.60820271]
[1725674963406,0.46946375,2232.7,2232.6,12.94883577]
[1725674963587,0.46946375,2232.7,2232.6,10.51862724]
[1725674963788,0.46946375,2232.7,2232.6,11.02116898]
[1725674966273,0.46946375,2232.7,2232.6,6.54208898]
[1725674966477,0.46946375,2232.7,2232.6,4.47908]
[1725674966885,0.46946375,2232.7,2232.6,6.03956512]
[1725674967723,0.46946375,2232.7,2232.6,4.47908]
[1725674968413,0.46946375,2232.7,2232.6,6.03955601]
[1725674968805,0.46946375,2232.7,2232.5,4.47926]
[1725674970683,0.46946375,2232.7,2232.6,1.5605056]
[1725674971115,0.46946375,2232.7,2232.5,4.47926]
[1725674971477,0.46946375,2232.7,2232.6,1.56049833]
[1725674971678,0.46946375,2232.7,2232.5,4.47926]
[1725674971878,0.46946375,2232.7,2232.6,1.56049598]
[1725674973316,0.46946375,2232.7,2232.6,6.03957598]
[1725674973615,0.46946375,2232.7,2232.6,9.89682037]
[1725674974915,0.46946375,2232.7,2232.6,7.33735015]
[1725674975092,0.46946375,2232.7,2232.6,9.67811177]
[1725674975296,0.46946375,2232.7,2232.6,9.89690518]
[1725674975604,0.46946375,2232.7,2232.6,9.67811633]
[1725674976212,0.46946375,2232.7,2232.6,9.8969138]
[1725674976383,0.46946375,2232.7,2232.6,7.33735015]
[1725674976919,0.46946375,2232.7,2232.6,7.33738267]
[1725674977279,0.46946375,2232.7,2232.6,9.89696089]
[1725674978224,0.46946375,2232.7,2232.6,9.89696681]
[1725674979728,0.46946375,2232.7,2232.6,5.41788681]
[1725674980014,0.46946375,2232.7,2232.6,3.90132073]
[1725674980216,4.94834375,2232.7,2232.6,0.21880061]
[1725674980547,4.94834375,2232.7,2232.3,4.47956]
[1725674980750,4.99663393,2232.7,2232.4,1.56073109]
[1725674981048,0.24671233,2232.6,2232.3,4.47956]
[1725674981404,0.24671233,2232.6,2232.4,1.56072889]
[1725674981643,0.24671233,2232.6,2232.3,4.47956]
[1725674981838,0.24671233,2232.6,2232.4,1.56073662]
[1725674982039,0.24671233,2232.6,2232.3,9.90085406]
[1725674982244,0.51775393,2232.7,2232.4,4.12051801]
[1725674982412,0.24643701,2232.6,2232.3,5.42125406]
[1725674982618,0.24643701,2232.6,2232.4,1.77952527]
[1725674982821,4.99664393,2232.7,2232.3,5.42125406]
[1725674983056,0.2464239,2232.6,2232.4,1.56070695]
[1725674983345,0.2464239,2232.6,2232.3,4.47956]
[1725674983520,0.2464239,2232.6,2232.4,1.56073069]
[1725674983717,0.2464239,2232.6,2232.3,8.95915]
[1725674983904,0.2464239,2232.6,2232.4,1.56071209]
[1725674984110,0.2464239,2232.6,2232.3,8.95915]
[1725674984347,0.2464239,2232.6,2232.4,1.77956792]
[1725674984533,0.2464239,2232.6,2232.3,9.90084406]
[1725674984708,0.2464239,2232.6,2232.4,1.77952057]
[1725674985048,0.2464239,2232.6,2232.3,4.47956]
[1725674985355,0.2464239,2232.6,2232.4,1.77954936]
[1725674985509,0.2464239,2232.6,2232.3,9.90084406]
[1725674985709,0.2464239,2232.6,2232.4,3.90174478]
[1725674985933,0.2464239,2232.6,2232.3,9.90084406]
[1725674986134,0.2464239,2232.6,2232.4,3.90172561]
[1725674986331,0.2464239,2232.6,2232.3,9.90084406]
[1725674986536,0.2464239,2232.6,2232.4,3.901773]
[1725674986841,0.2464239,2232.6,2232.3,9.90084406]
[1725674987148,0.2464239,2232.6,2232.5,11.41196]
[1725674987325,0.2464239,2232.6,2232.5,16.47409435]
[1725674987649,0.46946375,2232.7,2232.6,4.47908]
[1725674987846,0.46946375,2232.7,2232.6,8.38068855]
[1725674990410,0.46946375,2232.7,2232.6,9.32238261]
[1725674990645,0.46946375,2232.7,2232.6,10.58200654]
[1725674992052,0.46946375,2232.7,2232.6,10.5817646]
[1725674994232,0.46946375,2232.7,2232.6,6.1026846]
[1725674994529,0.46946375,2232.7,2232.6,4.84306067]
[1725674995270,0.46946375,2232.7,2232.6,9.32214067]
[1725674995770,0.46946375,2232.7,2232.6,11.77554067]
[1725674996647,0.46946375,2232.7,2232.6,17.77183232]
[1725674996857,2.2533,2233.4,2233.1,8.95592]
[1725674997052,0.24660744,2233.3,2233.1,4.47794]
[1725674997258,0.71594096,2233.3,2233.0,5.42014429]
[1725674997465,0.71594096,2233.3,2233.1,3.90064307]
[1725674997776,0.71594096,2233.3,2233.0,5.42014429]
[1725674998063,0.71594096,2233.3,2233.2,4.47787]
[1725674998261,0.71594096,2233.3,2233.2,6.038146]
[1725674998964,0.71594096,2233.3,2233.2,8.37845962]
[1725674999265,0.71594096,2233.3,2233.2,6.038146]
[1725675000409,0.71594096,2233.3,2233.2,8.37844691]
[1725675000613,0.71594096,2233.3,2233.2,9.60161759]
[1725675000909,0.71594096,2233.3,2233.2,7.26124057]
[1725675001769,0.71594096,2233.3,2233.2,1.56019989]
[1725675001983,0.71594096,2233.3,2233.0,5.42015429]
[1725675002223,0.71594096,2233.3,2233.1,8.37861666]
[1725675002430,0.71594096,2233.3,2233.1,4.47799]
[1725675002726,0.71594096,2233.3,2233.2,9.04529294]
[1725675002884,0.71594096,2233.3,2233.2,16.54951359]
[1725675004123,0.71594096,2233.3,2233.2,19.00862953]
[1725675004278,0.46933352,2233.3,2233.2,18.61672524]
[1725675005312,0.71672736,2233.3,2233.2,18.61652945]
[1725675005726,0.24739384,2233.3,2233.2,23.9467508]
[1725675006021,4.47569,2234.3,2233.8,4.47655]
[1725675006183,0.04829018,2234.2,2233.8,4.47655]
[1725675006382,0.29568402,2234.2,2233.8,8.95314]
[1725675006579,0.76483202,2234.2,2233.8,4.47655]
[1725675007045,0.71654184,2234.2,2234.1,4.47607]
[1725675007444,0.71654184,2234.2,2234.0,4.47608]
[1725675011686,0.71654184,2234.2,2233.9,4.47646]
[1725675012330,0.71654184,2234.2,2233.9,5.61738]
[1725675012573,0.71654184,2234.2,2233.9,5.70689744]
[1725675013177,0.71654184,2234.2,2234.0,4.47627]
[1725675017253,0.71654184,2234.2,2233.9,5.61738]
[1725675018036,0.71654184,2234.2,2233.9,5.70689744]
[1725675018515,0.71654184,2234.2,2233.9,5.61738]
[1725675018936,0.71654184,2234.2,2233.9,4.47646]
[1725675020209,0.71654184,2234.2,2233.9,4.47638]
[1725675020929,0.71654184,2234.2,2233.9,8.95276]
[1725675021386,0.71654184,2234.2,2234.0,6.86855]
[1725675021587,2.4744,2234.1,2233.7,4.47673]
[1725675021959,2.7229988,2234.1,2233.8,4.47667]
[1725675022120,2.4744,2234.1,2233.8,4.47667]
[1725675022295,0.25045906,2234.0,2233.8,4.47667]
[1725675023526,0.25045906,2234.0,2233.8,9.04264215]
[1725675023693,0.469148,2234.2,2233.9,1.01772502]
[1725675023877,0.469148,2234.2,2233.8,8.95312]
[1725675024217,0.2503936,2234.1,2233.8,8.95312]
[1725675024823,0.2503936,2234.1,2233.8,4.47656]
[1725675026450,0.2503936,2234.1,2234.0,4.47627]
[1725675026595,0.2503936,2234.1,2234.0,11.40505306]
[1725675026953,0.2503936,2234.1,2234.0,13.54321937]
[1725675027236,0.469148,2234.2,2234.1,4.47607]
[1725675027439,0.469148,2234.2,2234.1,9.04164986]
[1725675027810,0.469148,2234.2,2234.1,11.95464986]
[1725675028138,0.469148,2234.2,2234.1,11.86514]
[1725675028441,0.469148,2234.2,2234.1,12.8196573]
[1725675029297,0.469148,2234.2,2234.1,5.9805873]
[1725675030242,0.469148,2234.2,2234.1,10.4566573]
[1725675031613,6.73987,2234.6,2234.2,4.47577]
[1725675031803,7.20894746,2234.6,2234.2,4.47577]
[1725675031998,7.20894746,2234.6,2234.2,5.52140573]
[1725675032411,2.73387746,2234.6,2234.2,5.52140573]
[1725675034353,2.73387746,2234.6,2234.2,4.47577]
[1725675035524,7.20896746,2234.6,2234.2,4.47577]
[1725675035732,7.25725764,2234.6,2234.2,4.47577]
[1725675036098,7.25725764,2234.6,2233.8,19.9]
[1725675036099,2.2648,2234.5,2233.8,19.9]
[1725675036303,2.2648,2234.2,2233.8,24.37655]
[1725675036743,0.29669647,2234.1,2233.8,24.37655]
[1725675037113,0.29669647,2234.1,2233.9,4.47646]
[1725675037317,0.29669647,2234.1,2233.8,4.47655]
[1725675037318,0.29669647,2234.1,2234.0,4.47627]
[1725675037822,0.29667029,2234.1,2233.9,4.47647]
[1725675037983,4.52397018,2234.3,2233.9,4.47647]
[1725675038180,0.29644774,2234.0,2233.9,4.47647]
[1725675038380,4.52397018,2234.3,2233.9,4.47647]
[1725675038723,0.29644774,2234.0,2233.9,4.47647]
[1725675039015,4.52397018,2234.3,2233.9,4.47647]
[1725675039321,0.29644774,2234.0,2233.9,4.47647]
[1725675039525,4.52397018,2234.3,2233.9,4.47647]
[1725675039682,0.29644774,2234.0,2233.9,4.47647]
[1725675039887,4.52397018,2234.3,2233.9,4.47647]
[1725675040080,0.29644774,2234.0,2233.9,4.47647]
[1725675040287,4.52397018,2234.3,2233.9,4.47647]
[1725675040496,0.29644774,2234.0,2233.9,6.83947]
[1725675040696,6.78867018,2234.4,2234.0,4.47624]
[1725675041908,6.78867018,2234.4,2233.9,6.83947]
[1725675041909,6.78867018,2234.4,2233.9,4.47647]
[1725675042113,6.78867018,2234.4,2233.9,4.47638]
[1725675042497,4.47569,2234.3,2233.9,4.47638]
[1725675042698,4.52398018,2234.3,2233.9,4.47638]
[1725675045406,0.04829018,2234.3,2233.9,8.95276]
[1725675045606,0.04829018,2234.3,2233.9,4.47638]
[1725675046152,0.04829018,2234.3,2233.9,8.95272]
[1725675046334,0.04829018,2234.3,2234.0,4.47625]
[1725675047804,0.04829018,2234.3,2233.9,4.47634]
[1725675048044,0.04829018,2234.3,2233.9,8.9527]
[1725675048404,0.04829018,2234.3,2234.0,4.47622]
[1725675048604,8.13510293,2234.4,2234.0,4.47622]
[1725675051445,0.29598956,2234.3,2234.1,6.03568478]
[1725675051748,0.29598956,2234.3,2234.2,8.37493108]
[1725675052118,0.29598956,2234.3,2234.2,15.28680108]
[1725675052333,0.29598956,2234.3,2234.2,18.95558829]
[1725675052646,0.46912127,2234.4,2234.3,8.95134]
[1725675052855,0.46912127,2234.4,2234.3,13.79182746]
[1725675053010,0.29598956,2234.4,2234.3,13.79182746]
[1725675053352,0.29598956,2234.4,2234.3,16.22782746]
[1725675053558,0.46906117,2234.8,2234.5,4.47519]
[1725675054041,0.29638229,2234.7,2234.5,4.47517]
[1725675054242,0.29638229,2234.7,2234.5,5.71692952]
[1725675054448,0.46906117,2234.8,2234.5,5.71692952]
[1725675054631,0.29638229,2234.6,2234.5,5.71692952]
[1725675054823,2.74296117,2234.8,2234.5,4.47517]
[1725675055018,0.29638229,2234.6,2234.5,4.47517]
[1725675055356,2.79125135,2234.8,2234.5,4.47517]
[1725675055848,0.29638229,2234.7,2234.5,4.47517]
[1725675056159,2.79125135,2234.8,2234.5,4.47517]
[1725675056460,2.79125135,2234.8,2234.3,4.4755]
[1725675056461,4.52316018,2234.7,2234.3,4.4755]
[1725675056643,4.81954247,2234.7,2234.3,4.4755]
[1725675056818,4.52316018,2234.7,2234.3,4.4755]
[1725675057244,0.29638229,2234.6,2234.3,4.4755]
[1725675057828,0.29638229,2234.6,2234.3,8.95106]
[1725675058019,0.04829018,2234.7,2234.3,5.84941802]
[1725675058543,0.29638229,2234.6,2234.3,5.84941802]
[1725675059711,0.29638229,2234.6,2234.3,10.32499802]
[1725675060151,0.29638229,2234.6,2234.4,6.03479337]
[1725675060455,7.26592135,2234.8,2234.5,4.47527]
[1725675060456,0.46906117,2234.8,2234.5,4.47527]
[1725675060638,0.46906117,2234.8,2234.5,5.64403559]
[1725675062258,0.46906117,2234.8,2234.5,10.11918559]
[1725675063356,0.46906117,2234.8,2234.5,5.64387559]
[1725675063561,0.46906117,2234.8,2234.6,4.47505]
[1725675064472,0.46906117,2234.8,2234.4,2.436]
[1725675064473,4.99206135,2234.8,2234.4,4.47545]
[1725675064764,2.2917,2234.7,2234.3,4.4755]
[1725675065456,2.2917,2234.7,2234.3,8.95108]
[1725675065620,0.51735135,2234.8,2234.4,4.47546]
[1725675065827,0.46906117,2234.8,2234.5,6.78497]
[1725675066142,0.46906117,2234.8,2234.6,4.47504]
[1725675066357,0.46906117,2234.8,2234.7,1.1349505]
[1725675067647,0.46906117,2234.8,2234.7,10.17418523]
[1725675067849,6.76554,2235.3,2234.9,4.47445]
[1725675068158,0.4690223,2235.2,2234.9,4.47445]
[1725675068454,0.4690223,2235.2,2234.9,4.56393181]
[1725675068667,0.4690223,2235.2,2234.9,4.47445]
[1725675068846,0.4690223,2235.2,2234.9,5.71382105]
[1725675070553,6.50665963,2235.2,2234.7,6.78457]
[1725675070757,6.50665963,2235.2,2234.7,4.47477]
[1725675071561,4.47408,2235.1,2234.7,4.47477]
[1725675072740,4.52237018,2235.1,2234.7,4.47477]
[1725675074641,4.4743,2235.0,2234.5,14.18912044]
[1725675074842,11.23994,2235.1,2234.6,4.47494]
[1725675076763,4.52258018,2235.0,2234.5,18.66429044]
[1725675076971,4.52258018,2235.0,2234.5,14.18912044]
[1725675077557,4.52258018,2235.0,2234.5,18.66429044]
[1725675078083,4.52258018,2235.0,2234.6,4.47503]
[1725675079982,4.52258018,2235.0,2234.5,6.78497]
[1725675080142,4.52258018,2235.0,2234.5,11.26012]
[1725675081089,4.52258018,2235.0,2234.6,4.47507]
[1725675081463,0.29744249,2234.9,2234.6,4.47507]
[1725675082680,4.77194249,2234.9,2234.5,6.78495]
[1725675082880,2.33999018,2234.8,2234.4,24.37538]
[1725675083085,2.63743267,2234.8,2234.4,4.47538]
[1725675083288,2.58914249,2234.8,2234.5,4.47524]
[1725675085312,0.29744249,2234.8,2234.5,4.47524]
[1725675086372,4.77223249,2234.8,2234.4,4.47544]
[1725675086576,4.82052267,2234.8,2234.4,4.47544]
[1725675088173,6.85999,2234.6,2234.2,11.88002044]
[1725675088419,4.77241842,2234.5,2234.2,7.40415044]
[1725675088885,4.47529,2234.5,2234.2,7.40415044]
[1725675089310,0.29712842,2234.4,2234.2,7.40415044]
[1725675091266,6.85999,2234.6,2234.3,1.18800904]
[1725675091408,6.85999,2234.6,2234.2,11.87992044]
[1725675091409,0.29686664,2234.3,2234.2,4.47577]
[1725675091605,11.33518,2234.6,2234.2,8.59261954]
[1725675091810,0.29689282,2234.5,2234.2,4.47577]
[1725675092545,0.29689282,2234.5,2234.3,1.55933285]
[1725675092752,0.29689282,2234.5,2234.2,4.47577]
[1725675092920,0.29689282,2234.5,2234.3,1.55934682]
[1725675093254,0.29689282,2234.5,2234.2,4.47577]
[1725675093487,0.29689282,2234.5,2234.3,1.55937772]
[1725675093610,0.29689282,2234.5,2234.2,5.41719638]
[1725675093812,2.3849,2234.6,2234.3,1.55933487]
[1725675094011,0.29690591,2234.5,2234.2,4.47577]
[1725675094239,4.47509,2234.6,2234.3,1.55935386]
[1725675094536,4.47509,2234.6,2234.2,5.41719638]
[1725675094537,0.29690591,2234.5,2234.2,5.41719638]
[1725675094724,0.29690591,2234.5,2234.3,3.89835686]
[1725675094924,4.52338018,2234.6,2234.2,5.41719638]
[1725675095147,0.29690591,2234.4,2234.3,3.8983549]
[1725675095347,4.52338018,2234.6,2234.3,3.8983549]
[1725675095551,0.29690591,2234.4,2234.2,5.41719638]
[1725675095713,4.52338018,2234.6,2234.3,3.89846575]
[1725675095914,4.52338018,2234.6,2234.2,5.41719638]
[1725675096153,0.29690591,2234.5,2234.3,3.89838628]
[1725675096338,0.04829018,2234.7,2234.3,4.47554]
[1725675096514,0.29690591,2234.4,2234.3,4.47554]
[1725675096859,0.29690591,2234.4,2234.3,10.44558065]
[1725675097147,0.04829018,2234.7,2234.3,10.44558065]
[1725675097355,6.85959,2234.8,2234.4,8.37373125]
[1725675097510,2.43319018,2234.8,2234.4,4.47546]
[1725675097713,0.29690591,2234.7,2234.4,4.47546]
[1725675097914,0.29690591,2234.7,2234.5,1.55927115]
[1725675098115,2.43319018,2234.8,2234.4,4.47546]
[1725675098413,2.43319018,2234.8,2234.5,1.5592802]
[1725675098614,0.29680121,2234.7,2234.4,4.47546]
[1725675098850,2.43319018,2234.8,2234.5,1.55927842]
[1725675099155,0.29680121,2234.7,2234.4,8.95074]
[1725675099318,0.29680121,2234.7,2234.5,1.55925834]
[1725675099520,2.43319018,2234.8,2234.4,9.89216638]
[1725675099763,0.29680121,2234.6,2234.5,3.89811657]
[1725675099955,2.43319018,2234.8,2234.5,1.55924663]
[1725675100127,0.29680121,2234.6,2234.4,9.89216638]
[1725675100322,2.43319018,2234.8,2234.5,8.37335401]
[1725675100543,2.3849,2234.8,2234.5,4.47523]
[1725675100858,4.52285018,2234.9,2234.5,4.47523]
[1725675102130,8.99742018,2234.9,2234.5,4.47523]
[1725675102330,4.52285018,2234.9,2234.5,4.47523]
[1725675103368,4.52285018,2234.9,2234.6,1.55920755]
[1725675103668,4.52285018,2234.9,2234.5,4.47523]
[1725675103961,4.52285018,2234.9,2234.6,1.55917517]
[1725675104273,4.52285018,2234.9,2234.5,5.84552302]
[1725675104431,4.52285018,2234.9,2234.6,1.55921034]
[1725675104631,4.52285018,2234.9,2234.5,5.84552302]
[1725675105434,4.52285018,2234.9,2234.6,1.55922215]
[1725675105661,4.52285018,2234.9,2234.5,5.84552302]
[1725675105931,4.52285018,2234.9,2234.6,1.55921925]
[1725675106137,4.47456,2234.9,2234.5,5.84552302]
[1725675106333,4.52285018,2234.9,2234.6,1.55922283]
[1725675106548,4.52285018,2234.9,2234.5,5.84552302]
[1725675106769,0.04829018,2234.9,2234.6,2.68544619]
[1725675106984,0.04829018,2234.9,2234.6,1.12622294]
[1725675107194,4.47424,2235.1,2234.6,5.60127294]
[1725675107344,6.86089018,2235.2,2234.7,10.87160632]
[1725675107541,6.86089018,2235.2,2234.7,8.39019067]
[1725675110242,6.86089018,2235.2,2234.8,4.47467]
[1725675110642,6.86089018,2235.2,2234.7,8.39019067]
[1725675111552,0.29694519,2235.1,2234.7,8.39019067]
[1725675111752,4.77101519,2235.1,2234.7,3.91546067]
[1725675111952,4.52236018,2235.1,2234.7,1.41646067]
[1725675112190,0.29724619,2235.0,2234.7,1.41646067]
[1725675115289,0.29724619,2235.0,2234.8,1.55912756]
[1725675115457,0.29724619,2235.0,2234.7,1.41646067]
[1725675117786,2.3387,2234.9,2234.6,0.94142638]
[1725675118086,2.3387,2234.9,2234.7,3.89783253]
[1725675118254,0.29724619,2234.8,2234.6,0.94142638]
[1725675118596,0.29724619,2234.8,2234.7,3.89783388]
[1725675118892,0.29724619,2234.8,2234.7,1.55913355]
[1725675119191,0.29724619,2234.8,2234.7,3.8979038]
[1725675119366,0.29724619,2234.8,2234.7,3.89794495]
[1725675122363,0.29724619,2234.8,2234.7,1.55916152]
[1725675122687,0.29724619,2234.8,2234.7,1.55920056]
[1725675123567,0.29724619,2234.8,2234.7,3.89800373]
[1725675123776,0.29724619,2234.8,2234.7,1.55920056]
[1725675124297,0.29724619,2234.8,2234.7,3.89794331]
[1725675124466,0.29724619,2234.8,2234.7,1.55920056]
[1725675124672,6.97600018,2235.0,2234.7,3.89798765]
[1725675124869,0.29758643,2234.9,2234.6,3.36892638]
[1725675125061,6.97600018,2235.0,2234.7,3.89787863]
[1725675125264,0.29758643,2234.9,2234.6,3.36892638]
[1725675125476,6.97600018,2235.0,2234.7,3.89787111]
[1725675125681,0.29758643,2234.9,2234.6,3.36892638]
[1725675125885,6.97600018,2235.0,2234.7,3.8978559]
[1725675126064,0.29758643,2234.9,2234.6,3.36892638]
[1725675126259,6.97600018,2235.0,2234.7,3.89785222]
[1725675126461,0.29758643,2234.9,2234.6,3.36892638]
[1725675126656,6.97600018,2235.0,2234.7,3.89785468]
[1725675126861,0.29758643,2234.9,2234.6,3.36892638]
[1725675127091,0.29758643,2234.9,2234.7,3.89795991]
[1725675127393,0.29758643,2234.9,2234.6,3.36892638]
[1725675127575,0.29758643,2234.9,2234.7,1.55915979]
[1725675127771,6.97600018,2235.0,2234.6,3.36892638]
[1725675127980,0.29758643,2234.8,2234.7,3.8979634]
[1725675128157,6.97600018,2235.0,2234.7,3.8979634]
[1725675128363,0.29758643,2234.8,2234.5,0.94142638]
[1725675128562,4.47448,2234.9,2234.6,3.89798907]
[1725675128875,4.47448,2234.9,2234.7,1.55919563]
[1725675129070,0.29758643,2234.8,2234.5,2.50255191]
[1725675129279,4.47448,2234.9,2234.6,3.89801123]
[1725675129486,4.52277018,2234.9,2234.7,1.55920449]
[1725675129681,0.29758643,2234.8,2234.5,2.50255191]
[1725675129895,4.52277018,2234.9,2234.6,3.89800876]
[1725675130097,4.52277018,2234.9,2234.5,2.50255191]
[1725675130098,4.52277018,2234.9,2234.7,1.5592035]
[1725675130302,4.52277018,2234.9,2234.5,2.50255191]
[1725675130506,0.29758643,2234.8,2234.6,3.89802445]
[1725675130798,4.52277018,2234.9,2234.7,1.55920978]
[1725675131006,4.52277018,2234.9,2234.5,2.50255191]
[1725675131212,0.29758643,2234.8,2234.6,3.89806353]
[1725675131379,0.29758643,2234.8,2234.7,1.55922541]
[1725675135106,0.29758643,2234.8,2234.5,0.94142638]
[1725675135107,7.22565643,2234.8,2234.4,0.94142638]